lending/lending_fUSD_20241025
["ID","MTS","AMOUNT","RATE_DAILY","PERIOD"]
[340790113,1729828240887,-486.728,0.00016512,2]
[340790114,1729828240896,-370.71,0.00016862,2]
[340790116,1729828240906,-318.75,0.0001697,2]
[340790118,1729828240915,-201.75,0.00017243,2]
[340790120,1729828240925,-1000.0,0.00017383,2]
[340790122,1729828240934,-150.0,0.0001856,2]
[340790124,1729828240943,-370.71,0.00019126,2]
[340790126,1729828240952,-180.19,0.00019178,2]
[340790128,1729828240962,-200.0,0.00019178,2]
[340790130,1729828240972,-8249.74755082,0.00019344,2]
[340790132,1729828240982,-1000.0,0.00019556,2]
[340790134,1729828240992,-257.39,0.00019671,2]
[340790136,1729828241001,-1619.438,0.00020469,2]
[340790138,1729828241010,-1049.148,0.00020469,2]
[340790140,1729828241020,-720.696,0.00020469,2]
[340790142,1729828241029,-1085.0,0.00020469,2]
[340790144,1729828241038,-257.39,0.00020654,2]
[340790146,1729828241048,-370.71,0.0002139,2]
[340790148,1729828241060,-257.39,0.00021638,2]
[340790150,1729828241068,-1000.0,0.00021728,2]
[340790152,1729828241077,-175.96,0.00021745,2]
[340790154,1729828241087,-620.0,0.00021918,2]
[340790156,1729828241101,-585.38,0.00021921,2]
[340790158,1729828241111,-176.29684643,0.0002205,2]
[340790160,1729828241120,-257.39,0.00022621,2]
[340790162,1729828241129,-266.44,0.00023469,2]
[340790164,1729828241139,-257.39,0.00023605,2]
[340790166,1729828241148,-370.71,0.00023654,2]
[340790168,1729828241157,-1000.0,0.00023901,2]
[340790169,1729828241166,-878.635,0.0002444,7]
[340790171,1729828241176,-8249.74755082,0.00024789,2]
[340790173,1729828241186,-370.71,0.00025918,2]
[340790175,1729828241197,-1000.0,0.00026074,2]
[340790177,1729828241207,-159.62,0.00027397,2]
[340790179,1729828241216,-3829.69,0.00027645,2]
[340790181,1729828241225,-175.96,0.00028147,2]
[340790183,1729828241234,-370.71,0.00028182,2]
[340790185,1729828241244,-182.11,0.00028736,120]
[340790187,1729828241254,-176.29684643,0.00028858,2]
[340790188,1729828241263,-159.62,0.0002968,2]
[340790191,1729828241273,-1014.0,0.000302,2]
[340790192,1729828241282,-8249.74755082,0.00030233,15]
[340790194,1729828241292,-370.71,0.00030446,2]
[340790196,1729828241301,-272.90643067,0.00030516,30]
[340790198,1729828241311,-156.35,0.00030548,2]
[340790200,1729828241320,-394.27,0.0003189,10]
[340790202,1729828241329,-217.0,0.00031895,2]
[340790204,1729828241338,-200.0,0.000319,120]
[340790206,1729828241354,-159.62,0.00031963,2]
[340790208,1729828241363,-328.56,0.0003199,10]
[340790210,1729828241373,-7298.9201662,0.00031995,2]
[340790211,1729828241382,-1848.97304412,0.00031995,2]
[340790419,1729828243324,-1000.0,0.000311,2]
[340790422,1729828243334,-899.79786268,0.00031995,2]
[340790425,1729828243346,-3553.01168937,0.00032,2]
[340790428,1729828243356,-640.10830055,0.00032687,2]
[340790440,1729828243411,-2995.94060252,0.00032687,2]
[340790443,1729828243423,-46215.10758873,0.00032687,2]
[340790446,1729828243433,-370.71,0.0003271,2]
[340790449,1729828243443,-164.39,0.0003272,2]
[340790452,1729828243452,-152.0,0.00032795,3]
[340790455,1729828243462,-164.01000166,0.00032877,2]
[340790458,1729828243472,-3004.0,0.00032877,7]
[340790459,1729828243481,-1000.0,0.000329,7]
[340790460,1729828243491,-620.0,0.00033151,120]
[340790461,1729828243500,-1000.0,0.000338,7]
[340790462,1729828243510,-159.62,0.00034247,2]
[340790463,1729828243519,-175.96,0.00034549,2]
[340790464,1729828243529,-153.613354,0.00034667,120]
[340790465,1729828243538,-265.82007632,0.00034849,120]
[340790466,1729828243548,-178.56705682,0.00034921,40]
[340790467,1729828243558,-370.71,0.00034974,2]
[340790468,1729828243567,-20513.41156414,0.00035,30]
[340790469,1729828243577,-1554.29284615,0.00035,120]
[340790470,1729828243587,-161.0,0.00035,2]
[340790471,1729828243599,-152.0,0.00035208,4]
[340790472,1729828243609,-176.29684643,0.00035666,2]
[340790473,1729828243618,-8249.74755082,0.00035678,15]
[340790474,1729828243628,-159.62,0.0003653,2]
[340790475,1729828243638,-181.94660322,0.000372,103]
[340790476,1729828243647,-370.71,0.00037237,2]
[340790477,1729828243657,-152.0,0.0003762,5]
[340790478,1729828243667,-413.73454414,0.00037741,30]
[340790479,1729828243676,-413.73454414,0.00037864,30]
[340790481,1729828243685,-528.79482724,0.00037885,30]
[340790483,1729828243695,-150.0,0.00037892,2]
[340790485,1729828243704,-150.0,0.00038099,2]
[340790487,1729828243714,-150.0,0.00038276,2]
[340790489,1729828243723,-413.73454414,0.00038299,30]
[340790491,1729828243732,-150.0,0.00038351,2]
[340790493,1729828243741,-351.0,0.00038477,5]
[340790495,1729828243751,-150.0,0.00038477,2]
[340790497,1729828243760,-150.0,0.00038497,2]
[340790499,1729828243770,-413.73454414,0.00038545,30]
[340790501,1729828243779,-150.0,0.00038703,2]
[340790503,1729828243788,-413.73454414,0.00038722,30]
[340790505,1729828243798,-159.62,0.00038813,2]
[340790507,1729828243808,-413.73454414,0.0003897,30]
[340790509,1729828243818,-500.0,0.00039,20]
[340790511,1729828243827,-500.0,0.00039,30]
[340790513,1729828243838,-500.0,0.00039,30]
[340790515,1729828243850,-500.0,0.00039,20]
[340790517,1729828243860,-150.0,0.00039097,2]
[340790529,1729828243870,-150.0,0.00039099,2]
[340790531,1729828243983,-150.0,0.00039209,2]
[340790533,1729828243993,-150.0,0.00039283,2]
[340790535,1729828244002,-150.0,0.00039354,2]
[340790537,1729828244012,-150.0,0.00039366,2]
[340790539,1729828244021,-413.73454414,0.00039397,30]
[340790541,1729828244032,-150.0,0.00039411,2]
[340790543,1729828244043,-150.0,0.00039418,2]
[340790545,1729828244052,-150.0,0.00039443,2]
[340790547,1729828244062,-150.0,0.0003947,2]
[340790549,1729828244071,-150.0,0.00039472,2]
[340790551,1729828244080,-150.0,0.00039491,2]
[340790552,1729828244090,-370.71,0.00039501,2]
[340790554,1729828244103,-150.0,0.00039539,2]
[340790556,1729828244114,-150.0,0.00039554,2]
[340790558,1729828244124,-150.0,0.00039571,2]
[340790560,1729828244133,-413.73454414,0.00039659,30]
[340790562,1729828244143,-150.0,0.0003972,2]
[340790564,1729828244152,-150.0,0.00039769,2]
[340790566,1729828244161,-150.0,0.00039787,2]
[340790568,1729828244170,-150.0,0.00039791,2]
[340790570,1729828244180,-150.0,0.000398,2]
[340790572,1729828244189,-150.0,0.00039811,2]
[340790574,1729828244198,-150.0,0.00039841,2]
[340790576,1729828244209,-150.0,0.000399,2]
[340790578,1729828244218,-413.73454414,0.00039917,30]
[340790580,1729828244227,-150.0,0.00039925,2]
[340790582,1729828244237,-150.0,0.00039938,2]
[340790584,1729828244247,-2951.43046049,0.0004,2]
[340790586,1729828244256,-12000.0,0.0004,30]
[340790588,1729828244267,-1300.0,0.0004,90]
[340790590,1729828244276,-150.0,0.00040019,2]
[340790592,1729828244286,-152.0,0.00040032,6]
[340790594,1729828244296,-150.0,0.00040073,2]
[340790596,1729828244306,-150.0,0.00040081,2]
[340790598,1729828244316,-150.0,0.00040175,2]
[340790600,1729828244325,-150.0,0.00040206,2]
[340790602,1729828244335,-150.0,0.00040212,2]
[340790603,1729828244345,-413.73454414,0.0004022,30]
[340790605,1729828244355,-150.0,0.00040223,2]
[340790607,1729828244364,-150.0,0.00040229,2]
[340790609,1729828244373,-150.0,0.00040282,2]
[340790611,1729828244383,-5134.9,0.00040296,7]
[340790613,1729828244392,-150.0,0.00040329,2]
[340790615,1729828244402,-413.73454414,0.00040336,30]
[340790617,1729828244411,-150.0,0.00040371,2]
[340790619,1729828244421,-150.0,0.00040372,2]
[340790621,1729828244430,-150.0,0.00040375,2]
[340790623,1729828244440,-150.0,0.00040401,2]
[340790625,1729828244449,-150.0,0.00040401,2]
[340790627,1729828244459,-150.0,0.00040439,2]
[340790629,1729828244469,-150.0,0.0004054,2]
[340790631,1729828244479,-150.0,0.00040547,2]
[340790633,1729828244488,-413.73454414,0.00040549,30]
[340790635,1729828244498,-150.0,0.00040554,2]
[340790637,1729828244508,-150.0,0.0004065,2]
[340790639,1729828244518,-150.0,0.00040653,2]
[340790641,1729828244527,-39.29630937,0.00040663,2]
[340790645,1729828244553,-110.70369063,0.00040663,2]
[340790647,1729828244563,-150.0,0.00040808,2]
[340790649,1729828244574,-413.73454414,0.0004085,30]
[340790651,1729828244584,-150.0,0.00040892,2]
[340790652,1729828244595,-150.0,0.00040899,2]
[340790654,1729828244604,-10004.48,0.00040905,7]
[340790656,1729828244613,-175.96,0.00040952,2]
[340790658,1729828244623,-150.0,0.00040994,2]
[340790660,1729828244632,-373.55,0.00041,30]
[340790662,1729828244642,-218.3868382,0.00041,30]
[340790664,1729828244651,-150.0,0.00041071,2]
[340790666,1729828244660,-159.62,0.00041096,2]
[340790668,1729828244671,-3000.0,0.00041096,30]
[340790670,1729828244680,-1061.0,0.000411,2]
[340790672,1729828244689,-200.0,0.000411,2]
[340790674,1729828244698,-150.0,0.00041112,2]
[340790676,1729828244707,-8249.74755082,0.00041122,15]
[340790678,1729828244717,-413.73454414,0.00041135,30]
[340790680,1729828244727,-150.0,0.00041141,2]
[340790682,1729828244737,-150.0,0.00041155,2]
[340790684,1729828244748,-150.0,0.00041207,2]
[340790686,1729828244757,-150.0,0.00041213,2]
[340790688,1729828244767,-150.0,0.00041225,2]
[340790690,1729828244776,-150.0,0.00041323,2]
[340790692,1729828244786,-150.0,0.00041375,2]
[340790693,1729828244796,-150.0,0.00041416,2]
[340790695,1729828244806,-413.73454414,0.00041496,30]
[340790698,1729828244817,-10925.22,0.00041533,7]
[340790700,1729828244827,-150.0,0.00041539,2]
[340790702,1729828244836,-150.0,0.00041553,2]
[340790703,1729828244847,-504.501276,0.000416,39]
[340790705,1729828244856,-998.49,0.000417,2]
[340790707,1729828244866,-370.71,0.00041765,2]
[340790709,1729828244876,-150.0,0.00041773,2]
[340790711,1729828244886,-413.73454414,0.00041787,30]
[340790713,1729828244896,-150.0,0.00041811,2]
[340790715,1729828244906,-1500.0,0.00041842,7]
[340790717,1729828244916,-150.0,0.00041867,2]
[340790719,1729828244927,-1500.0,0.00041877,7]
[340790721,1729828244937,-150.0,0.00041889,2]
[340790723,1729828244946,-1683.71871445,0.00041896,5]
[340790725,1729828244956,-4846.0,0.000419,5]
[340790727,1729828244965,-150.0,0.00041922,2]
[340790729,1729828244975,-1536.82782603,0.00041985,7]
[340790731,1729828244985,-1800.0,0.00042,2]
[340790733,1729828244994,-3000.0,0.00042,2]
[340790734,1729828245004,-150.0,0.00042003,2]
[340790736,1729828245014,-150.0,0.00042019,2]
[340790738,1729828245025,-150.0,0.00042119,2]
[340790741,1729828245037,-1500.0,0.00042132,7]
[340790743,1729828245047,-1500.0,0.00042138,7]
[340790744,1729828245057,-150.0,0.00042146,2]
[340790747,1729828245067,-101162.9168629,0.00042146,7]
[340790749,1729828245081,-40945.8931371,0.00042146,7]
[340790751,1729828245091,-482.07892231,0.00042147,7]
[340790753,1729828245102,-846.0867808,0.00042158,30]
[340790755,1729828245113,-413.73454414,0.00042167,30]
[340790757,1729828245123,-150.0,0.0004218,2]
[340790759,1729828245134,-150.0,0.00042192,2]
[340790761,1729828245144,-150.0,0.00042194,2]
[340790763,1729828245154,-151.85608626,0.00042241,7]
[340790765,1729828245163,-277.78921068,0.00042247,7]
[340790767,1729828245173,-150.0,0.00042276,2]
[340790769,1729828245183,-1500.0,0.00042282,7]
[340790771,1729828245193,-1429.1120495,0.00042323,7]
[340790773,1729828245203,-413.73454414,0.00042356,30]
[340790775,1729828245213,-150.0,0.00042373,7]
[340790777,1729828245222,-150.0,0.00042379,2]
[340790779,1729828245233,-150.0,0.00042392,2]
[340790781,1729828245243,-150.0,0.00042395,2]
[340790783,1729828245252,-150.0,0.00042402,2]
[340790785,1729828245261,-150.0,0.00042414,2]
[340790787,1729828245271,-150.0,0.00042415,2]
[340790789,1729828245282,-1500.0,0.00042431,7]
[340790790,1729828245291,-1500.0,0.00042438,7]
[340790792,1729828245301,-152.0,0.00042445,7]
[340790795,1729828245312,-150.0,0.00042459,2]
[340790797,1729828245321,-150.0,0.00042471,2]
[340790799,1729828245331,-176.29684643,0.00042473,28]
[340790801,1729828245340,-1500.0,0.00042478,7]
[340790803,1729828245351,-150.0,0.00042483,2]
[340790805,1729828245361,-1500.0,0.00042504,7]
[340790807,1729828245371,-1500.0,0.00042519,7]
[340790809,1729828245382,-150.0,0.00042535,7]
[340790811,1729828245392,-150.0,0.00042545,2]
[340790813,1729828245403,-150.0,0.00042573,2]
[340790815,1729828245413,-150.0,0.00042575,2]
[340790817,1729828245422,-500.0,0.000426,39]
[340790818,1729828245432,-757.04,0.00042603,2]
[340790820,1729828245442,-1500.0,0.00042608,7]
[340790822,1729828245452,-150.0,0.00042635,2]
[340790824,1729828245463,-413.73454414,0.00042641,30]
[340790827,1729828245474,-171.74133443,0.00042658,8]
[340790828,1729828245484,-1500.0,0.0004266,7]
[340790830,1729828245494,-150.0,0.00042661,2]
[340790832,1729828245504,-1500.0,0.00042669,7]
[340790834,1729828245514,-1500.0,0.00042671,7]
[340790836,1729828245523,-219.18955173,0.00042673,17]
[340790838,1729828245533,-150.0,0.00042678,7]
[340790840,1729828245543,-150.0,0.00042678,2]
[340790842,1729828245553,-1500.0,0.00042692,7]
[340790844,1729828245563,-401.0,0.000427,29]
[340790846,1729828245572,-300.52,0.000427,30]
[340790848,1729828245582,-1390.41778818,0.000427,30]
[340790850,1729828245592,-2000.0,0.000427,52]
[340790852,1729828245603,-2000.0,0.000427,52]
[340790854,1729828245613,-2000.0,0.000427,52]
[340790856,1729828245623,-502.955184,0.000427,52]
[340790858,1729828245633,-150.0,0.00042709,2]
[340790860,1729828245643,-2883.97408,0.0004271,52]
[340790862,1729828245652,-2000.0,0.0004271,52]
[340790864,1729828245663,-2023.641477,0.0004271,52]
[340790866,1729828245672,-3795.805363,0.0004272,52]
[340790868,1729828245681,-150.0,0.00042728,2]
[340790870,1729828245691,-1500.0,0.00042742,7]
[340790872,1729828245700,-10000.0,0.00042744,30]
[340790874,1729828245710,-150.0,0.00042748,2]
[340790876,1729828245719,-1000.0,0.00042751,120]
[340790878,1729828245729,-1500.0,0.00042753,7]
[340790880,1729828245739,-172.681722,0.00042757,14]
[340790882,1729828245748,-151.0,0.00042757,14]
[340790883,1729828245757,-151.0,0.00042757,14]
[340790885,1729828245768,-151.0,0.00042757,14]
[340790887,1729828245777,-841.75519,0.00042757,14]
[340790889,1729828245787,-841.75519,0.00042757,14]
[340790891,1729828245796,-169.704474,0.00042757,14]
[340790893,1729828245806,-151.0,0.00042757,14]
[340790895,1729828245815,-151.0,0.00042757,14]
[340790896,1729828245824,-2028.97605965,0.00042757,8]
[340790898,1729828245834,-211.03495242,0.00042757,30]
[340790900,1729828245843,-1000.0,0.00042758,30]
[340790902,1729828245854,-760.0,0.00042758,30]
[340790904,1729828245863,-760.0,0.00042758,30]
[340790906,1729828245873,-760.0,0.00042758,30]
[340790908,1729828245882,-760.0,0.00042758,30]
[340790910,1729828245892,-760.0,0.00042758,30]
[340790912,1729828245901,-760.0,0.00042758,30]
[340790914,1729828245911,-760.0,0.00042758,30]
[340790916,1729828245921,-760.0,0.00042758,30]
[340790918,1729828245930,-760.0,0.00042758,30]
[340790919,1729828245939,-760.0,0.00042758,30]
[340790921,1729828245949,-760.0,0.00042758,30]
[340790923,1729828245959,-770.0,0.00042758,30]
[340790925,1729828245968,-160.0,0.00042758,30]
[340790927,1729828245977,-160.0,0.00042758,30]
[340790929,1729828245987,-160.0,0.00042758,30]
[340790931,1729828245996,-160.0,0.00042758,30]
[340790933,1729828246006,-160.0,0.00042758,30]
[340790935,1729828246015,-160.0,0.00042758,30]
[340790937,1729828246025,-160.0,0.00042758,30]
[340790939,1729828246037,-160.0,0.00042758,30]
[340790941,1729828246046,-160.0,0.00042758,30]
[340790943,1729828246055,-160.0,0.00042758,30]
[340790945,1729828246064,-235.35488179,0.00042758,30]
[340790947,1729828246075,-160.0,0.00042758,30]
[340790949,1729828246084,-160.0,0.00042758,30]
[340790952,1729828246095,-160.0,0.00042758,30]
[340790954,1729828246103,-160.0,0.00042758,30]
[340790955,1729828246113,-160.0,0.00042758,30]
[340790957,1729828246123,-160.0,0.00042758,30]
[340790959,1729828246133,-188.64413561,0.00042758,30]
[340790962,1729828246143,-951.0,0.00042758,30]
[340790964,1729828246152,-951.0,0.00042758,30]
[340790966,1729828246163,-951.0,0.00042758,30]
[340790968,1729828246175,-951.0,0.00042758,30]
[340790970,1729828246184,-951.0,0.00042758,30]
[340790972,1729828246194,-951.0,0.00042758,30]
[340790974,1729828246203,-951.0,0.00042758,30]
[340790976,1729828246213,-951.0,0.00042758,30]
[340790978,1729828246223,-951.0,0.00042758,30]
[340790980,1729828246232,-951.0,0.00042758,30]
[340790982,1729828246242,-951.0,0.00042758,30]
[340790984,1729828246251,-953.88266934,0.00042758,30]
[340790986,1729828246262,-2000.0,0.00042758,7]
[340790988,1729828246272,-200.0,0.00042758,7]
[340790990,1729828246281,-2028.97605965,0.00042763,8]
[340790992,1729828246291,-221.0,0.00042767,120]
[340790994,1729828246300,-196.35638697,0.00042773,30]
[340790996,1729828246310,-158.71908893,0.00042773,3]
[340790998,1729828246319,-4925.23,0.00042773,2]
[340791000,1729828246328,-2581.95592428,0.00042773,2]
[340791001,1729828246337,-1711.83346602,0.00042773,15]
[340791003,1729828246349,-255.25790185,0.00042773,15]
[340791005,1729828246359,-677.87907903,0.00042773,4]
[340791007,1729828246368,-84912.42814874,0.00042773,2]
[340791009,1729828246378,-7364.30568255,0.00042773,10]
[340791011,1729828246387,-16485.15563764,0.00042773,2]
[340791013,1729828246396,-21891.87564613,0.00042773,2]
[340791015,1729828246406,-284.18217356,0.00042773,16]
[340791017,1729828246415,-318.24572059,0.00042773,14]
[340791028,1729828246515,-151.0,0.00042773,14]
[340791030,1729828246525,-151.0,0.00042773,14]
[340791032,1729828246535,-388.216714,0.00042773,14]
[340791034,1729828246544,-151.0,0.00042773,14]
[340791036,1729828246553,-388.216714,0.00042773,14]
[340791038,1729828246562,-26376.6887754,0.0004278,9]
[340791040,1729828246571,-151.0,0.0004279,14]
[340791042,1729828246580,-151.0,0.0004279,14]
[340791044,1729828246589,-151.0,0.0004279,14]
[340791046,1729828246599,-30817.65285617,0.0004279,9]
[340791075,1729828246835,-449.86248922,0.000139,2]
[340791077,1729828246846,-5703.91621753,0.0004279,9]
[340791079,1729828246855,-841.75519,0.0004279,14]
[340791081,1729828246863,-841.75519,0.0004279,14]
[340791083,1729828246872,-151.0,0.0004279,14]
[340791085,1729828246882,-151.0,0.0004279,14]
[340791087,1729828246891,-147674.0382815,0.000428,60]
[340791089,1729828246900,-151.0,0.000428,14]
[340791091,1729828246910,-151.0,0.000428,14]
[340791093,1729828246920,-388.216714,0.000428,14]
[340791095,1729828246929,-151.0,0.000428,14]
[340791097,1729828246938,-388.216714,0.000428,14]
[340791099,1729828246947,-1548.06,0.00042803,7]
[340791101,1729828246956,-857.8821,0.00042836,2]
[340791102,1729828246965,-175.01207578,0.0004285,120]
[340791105,1729828246976,-190.86637253,0.000429,60]
[340791107,1729828246987,-321.0,0.00042969,30]
[340791109,1729828246997,-182.11,0.00043103,120]
[340791111,1729828247008,-2000.0,0.00043172,2]
[340791113,1729828247018,-2000.0,0.00043186,7]
[340791115,1729828247027,-200.0,0.00043186,7]
[340791117,1729828247040,-1569.65,0.000435,7]
[340791118,1729828247049,-756.17,0.00043562,2]
[340791120,1729828247059,-376.25,0.00043562,2]
[340791123,1729828247070,-200.0,0.00043617,7]
[340791125,1729828247080,-2995.48,0.000438,7]
[340791127,1729828247090,-163.57238545,0.00043835,120]
[340791129,1729828247101,-359.76,0.00043836,2]
[340791131,1729828247111,-425.7,0.00043888,120]
[340791133,1729828247120,-502.955184,0.00044,57]
[340791135,1729828247130,-370.71,0.00044029,2]
[340791137,1729828247139,-200.0,0.00044054,7]
[340791139,1729828247148,-8973.17358755,0.00044221,7]
[340791141,1729828247161,-12436.19730973,0.00044221,7]
[340791143,1729828247172,-6695.5,0.00044221,7]
[340791145,1729828247187,-273.22255742,0.00032677,10]
[340791158,1729828247297,-0.57744258,0.00032677,10]
[340791160,1729828247306,-6709.02255741,0.00044221,7]
[340791162,1729828247317,-259.82288945,0.00044221,7]
[340791261,1729829216733,50.0,0.0001,2]
[340791262,1729829216756,159.24600566,0.0001,2]
[340791263,1729829216782,40.75399434,0.0001,2]
[340791264,1729829218831,-300.0,0.00012,2]
[340791271,1729829431395,-169.48,0.00015342,2]
[340791272,1729829431406,-156.83,0.00015342,2]
[340791273,1729829431415,-518.0,0.000157,2]
[340791274,1729829431424,-250.0,0.0001856,2]
[340791275,1729829431435,-1085.0,0.00020672,2]
[340791276,1729829431444,-156.83,0.000221,2]
[340791277,1729829431454,-367.97559046,0.00023472,2]
[340791278,1729829431501,-502.60295561,0.00023472,2]
[340791279,1729829431512,-748.85945393,0.00023472,2]
[340791280,1729829431522,-1049.148,0.00023472,2]
[340791281,1729829431531,-720.696,0.00023472,2]
[340791282,1729829431540,-266.44,0.00023672,2]
[340791283,1729829431550,-500.0,0.00027397,2]
[340791284,1729829431559,-156.83,0.00028858,2]
[340791285,1729829431568,-2587.04154712,0.00030036,7]
[340791286,1729829431581,-998.96137724,0.00030036,7]
[340791287,1729829431611,-9742.93777564,0.00030036,7]
[340791288,1729829431620,-266.77598319,0.00030136,2]
[340791289,1729829431629,-8526.46064644,0.00030136,2]
[340791290,1729829431641,-524.04935356,0.00030136,2]
[340791291,1729829431650,-272.90643067,0.00032301,30]
[340791292,1729829431660,-178.42,0.00032438,2]
[340791293,1729829431670,-217.0,0.00032587,2]
[340791294,1729829431679,-172.15420096,0.00032877,2]
[340791295,1729829431696,-427.15539373,0.00034849,120]
[340791296,1729829431707,-156.83,0.00035616,2]
[340791297,1729829431716,-181.94660322,0.000372,103]
[340791298,1729829431726,-297.89,0.00039601,2]
[340791299,1729829431735,-167.33,0.00039625,2]
[340791300,1729829431745,-182.11,0.00039652,120]
[340791301,1729829431755,-532.84,0.00039816,120]
[340791302,1729829431765,-878.635,0.00039889,56]
[340791303,1729829431774,-289.63,0.00039926,2]
[340791305,1729829431784,-1000.0,0.00039942,2]
[340791307,1729829431794,-3829.69,0.00039957,2]
[340791309,1729829431803,-1001.3199,0.00039971,2]
[340791311,1729829431812,-157.76,0.00040553,120]
[340791312,1729829431821,-413.73454414,0.00040681,2]
[340791314,1729829431832,-150.0,0.00040723,2]
[340791315,1729829431840,-250.0,0.00040804,120]
[340791318,1729829431850,-250.0,0.00040824,2]
[340791322,1729829431859,-413.73454414,0.00040839,2]
[340791324,1729829431869,-418.1655,0.00040849,10]
[340791326,1729829431879,-875.37,0.00040957,120]
[340791328,1729829431888,-292.69,0.00040991,2]
[340791330,1729829431897,-10689.5,0.00040995,7]
[340791332,1729829431906,-325.0,0.00041063,5]
[340791334,1729829431916,-331.0,0.000411,2]
[340791336,1729829431925,-1061.85824377,0.000411,2]
[340791338,1729829431935,-192.0,0.000411,2]
[340791340,1729829431944,-413.73454414,0.00041173,2]
[340791342,1729829431953,-155.55,0.00041209,2]
[340791343,1729829431962,-161.06,0.00041295,2]
[340791344,1729829431972,-443.14,0.00041389,2]
[340791345,1729829431982,-155.0,0.0004139,120]
[340791346,1729829431991,-177.13,0.00041398,2]
[340791347,1729829432001,-413.73454414,0.00041427,2]
[340791348,1729829432011,-524.52,0.0004143,2]
[340791349,1729829432020,-23900.0,0.00041448,2]
[340791350,1729829432030,-177.13,0.00041605,2]
[340791351,1729829432039,-745.33,0.00041646,7]
[340791352,1729829432048,-599.09,0.000417,2]
[340791353,1729829432057,-13.49998997,0.00041727,2]
[340791354,1729829432074,-400.23455417,0.00041727,2]
[340791355,1729829432084,-6359.06967718,0.00041846,15]
[340791356,1729829432093,-297.89,0.00041865,2]
[340791357,1729829432102,-8253.63635168,0.0004187,2]
[340791364,1729829437418,-443.81585153,0.00040995,7]
[340791365,1729829437472,-2801.17899308,0.00041096,30]
[340791366,1729829437527,-198.82100692,0.00041096,30]
[340791367,1729829437536,-1533.55899307,0.0004187,2]
[340791368,1729829437547,-276.14857609,0.0004187,2]
[340791369,1729829437584,-346.18842051,0.0004187,2]
[340791370,1729829437595,-541.90799385,0.0004187,2]
[340791371,1729829437606,-2578.8696648,0.0004187,2]
[340791372,1729829437615,-178.99,0.00041946,2]
[340791373,1729829437624,-413.73454414,0.00041979,2]
[340791374,1729829437634,-413.73454414,0.00042325,2]
[340791375,1729829437643,-156.83,0.00042374,2]
[340791376,1729829437653,-1438.71,0.00042466,7]
[340791377,1729829437664,-413.73454414,0.000425,2]
[340791378,1729829437673,-2769.31489346,0.00042766,30]
[340791379,1729829437683,-413.73454414,0.00042945,2]
[340791380,1729829437694,-413.73454414,0.00043136,2]
[340791381,1729829437705,-6593.47551491,0.00043139,7]
[340791382,1729829437716,-697.22222227,0.00043139,7]
[340791383,1729829437729,-460.34226282,0.00043139,7]
[340791384,1729829437738,-114.64510533,0.0004335,10]
[340791385,1729829437754,-385.79617361,0.0004335,10]
[340791386,1729829437763,-443.14,0.00043459,2]
[340791387,1729829437773,-413.73454414,0.0004348,2]
[340791388,1729829437783,-150.0,0.00043728,2]
[340791389,1729829437793,-150.0,0.00043728,2]
[340791390,1729829437802,-242.11,0.00043732,10]
[340791391,1729829437812,-150.0,0.00043734,2]
[340791392,1729829437821,-150.0,0.00043735,2]